[Event "*** SCC Grand Prix: Titled Tuesday Blitz"]
[Site "Chess.com"]
[Date "2020.07.07"]
[Round "6"]
[White "Firouzja2003"]
[Black "Dyadya81"]
[Result "1-0"]
[WhiteElo "3100"]
[BlackElo "2739"]
[TimeControl "180+1"]
[EndTime "11:06:21 PDT"]
[Termination "Firouzja2003 won on time"]

1. e4 {[%clk 0:03:00.9]} 1... c6 {[%clk 0:02:49.2]} 2. d4 {[%clk 0:02:59.7]}
2... d5 {[%clk 0:02:50.1]} 3. Nc3 {[%clk 0:02:58.8]} 3... dxe4 {[%clk
0:02:49.9]} 4. Nxe4 {[%clk 0:02:59.2]} 4... Nf6 {[%clk 0:02:49.9]} 5. Nxf6+
{[%clk 0:02:57.7]} 5... exf6 {[%clk 0:02:50.8]} 6. c3 {[%clk 0:02:57.5]} 6...
Bd6 {[%clk 0:02:49.7]} 7. Bd3 {[%clk 0:02:57.7]} 7... O-O {[%clk 0:02:48.8]} 8.
Qc2 {[%clk 0:02:57.8]} 8... Re8+ {[%clk 0:02:48.5]} 9. Ne2 {[%clk 0:02:57.9]}
9... h5 {[%clk 0:02:48.2]} 10. O-O {[%clk 0:02:52.3]} 10... h4 {[%clk
0:02:47.8]} 11. h3 {[%clk 0:02:52]} 11... Nd7 {[%clk 0:02:45.1]} 12. Be3 {[%clk
0:02:49.4]} 12... Nf8 {[%clk 0:02:43.3]} 13. Rad1 {[%clk 0:02:46.4]} 13... Be6
{[%clk 0:02:34.3]} 14. c4 {[%clk 0:02:45.2]} 14... Qd7 {[%clk 0:02:25.1]} 15.
Nf4 {[%clk 0:02:38.9]} 15... Bxf4 {[%clk 0:02:06.2]} 16. Bxf4 {[%clk 0:02:38.3]}
16... Rad8 {[%clk 0:02:06.2]} 17. Rfe1 {[%clk 0:02:23.7]} 17... Qc8 {[%clk
0:02:00.7]} 18. Bf1 {[%clk 0:02:18.9]} 18... Bf5 {[%clk 0:01:56.2]} 19. Qa4
{[%clk 0:02:15.6]} 19... Rxe1 {[%clk 0:01:52.7]} 20. Rxe1 {[%clk 0:02:15]} 20...
Ne6 {[%clk 0:01:50.1]} 21. Be3 {[%clk 0:02:12.8]} 21... Nxd4 {[%clk 0:01:48.5]}
22. Bxd4 {[%clk 0:02:04.7]} 22... Rxd4 {[%clk 0:01:47.8]} 23. Qxa7 {[%clk
0:02:05]} 23... Rd2 {[%clk 0:01:41]} 24. Qb6 {[%clk 0:02:01.9]} 24... Qd7 {[%clk
0:01:30.8]} 25. a4 {[%clk 0:01:47.4]} 25... Kh7 {[%clk 0:01:14.5]} 26. a5 {[%clk
0:01:41.4]} 26... Bd3 {[%clk 0:00:28.6]} 27. Bxd3+ {[%clk 0:00:50.1]} 27... Qxd3
{[%clk 0:00:20.3]} 28. Qxb7 {[%clk 0:00:47.5]} 28... Qd4 {[%clk 0:00:15.8]} 29.
Rf1 {[%clk 0:00:47.7]} 29... Rd1 {[%clk 0:00:11.4]} 30. Qb3 {[%clk 0:00:39.2]}
30... Rd3 {[%clk 0:00:09.8]} 31. Qc2 {[%clk 0:00:34]} 31... f5 {[%clk
0:00:10.1]} 32. a6 {[%clk 0:00:33.5]} 32... Rd2 {[%clk 0:00:10.5]} 33. Qxf5+
{[%clk 0:00:32.9]} 33... Kh6 {[%clk 0:00:09.1]} 34. a7 {[%clk 0:00:27.9]} 34...
g6 {[%clk 0:00:03.3]} 35. Qf3 {[%clk 0:00:21.4]} 1-0

[Event "*** SCC Grand Prix: Titled Tuesday Blitz"]
[Site "Chess.com"]
[Date "2020.07.07"]
[Round "6"]
[White "N00bM3ster"]
[Black "FrenchMonster2002"]
[Result "1-0"]
[WhiteElo "2611"]
[BlackElo "2455"]
[TimeControl "180+1"]
[EndTime "11:06:21 PDT"]
[Termination "N00bM3ster won on time"]

1. e4 {[%clk 0:02:59]} 1... c5 {[%clk 0:02:58.3]} 2. Nf3 {[%clk 0:02:59.1]} 2...
Nc6 {[%clk 0:02:58.6]} 3. d4 {[%clk 0:02:58.7]} 3... cxd4 {[%clk 0:02:59.5]} 4.
Nxd4 {[%clk 0:02:59.3]} 4... e5 {[%clk 0:03:00.2]} 5. Nb5 {[%clk 0:02:57.6]}
5... d6 {[%clk 0:03:00.7]} 6. N1c3 {[%clk 0:02:57.6]} 6... a6 {[%clk 0:03:01.1]}
7. Na3 {[%clk 0:02:57.7]} 7... Be7 {[%clk 0:03:01.8]} 8. Nd5 {[%clk 0:02:56.8]}
8... Nf6 {[%clk 0:03:02]} 9. Bd3 {[%clk 0:02:47.1]} 9... Nxd5 {[%clk 0:02:53.9]}
10. exd5 {[%clk 0:02:46.6]} 10... Nd4 {[%clk 0:02:52.2]} 11. c3 {[%clk
0:02:40.2]} 11... Nf5 {[%clk 0:02:51.7]} 12. Nc2 {[%clk 0:02:37.7]} 12... O-O
{[%clk 0:02:49.1]} 13. O-O {[%clk 0:02:37.1]} 13... Nh4 {[%clk 0:02:42.6]} 14.
f4 {[%clk 0:02:36.2]} 14... exf4 {[%clk 0:02:39.4]} 15. Bxf4 {[%clk 0:02:35.4]}
15... Ng6 {[%clk 0:02:29.2]} 16. Be3 {[%clk 0:02:29.5]} 16... Bg5 {[%clk
0:02:28.5]} 17. Qd2 {[%clk 0:02:23.8]} 17... Bxe3+ {[%clk 0:02:24.6]} 18. Nxe3
{[%clk 0:02:23.6]} 18... Qg5 {[%clk 0:02:23.2]} 19. Bxg6 {[%clk 0:02:20.8]}
19... hxg6 {[%clk 0:02:12.9]} 20. Qd4 {[%clk 0:02:19.3]} 20... Bd7 {[%clk
0:01:52.7]} 21. Rf3 {[%clk 0:02:00]} 21... b5 {[%clk 0:01:35.7]} 22. Raf1 {[%clk
0:01:57.7]} 22... Rae8 {[%clk 0:01:32.6]} 23. h4 {[%clk 0:01:48.7]} 23... Qe5
{[%clk 0:01:23.8]} 24. Qb6 {[%clk 0:01:41.6]} 24... Bc8 {[%clk 0:01:09.3]} 25.
Re1 {[%clk 0:01:08.2]} 25... Bg4 {[%clk 0:00:35.4]} 26. Rff1 {[%clk 0:01:01]}
26... Qg3 {[%clk 0:00:29.4]} 27. Qd4 {[%clk 0:00:57]} 27... Bd7 {[%clk
0:00:20.4]} 28. Qf4 {[%clk 0:00:53.7]} 28... Qxf4 {[%clk 0:00:20.1]} 29. Rxf4
{[%clk 0:00:54.6]} 29... Re5 {[%clk 0:00:20]} 30. Kf2 {[%clk 0:00:53.8]} 30...
Rfe8 {[%clk 0:00:20]} 31. Rd4 {[%clk 0:00:52.3]} 31... g5 {[%clk 0:00:15.1]} 32.
hxg5 {[%clk 0:00:47.8]} 32... Rxg5 {[%clk 0:00:16]} 33. Nc2 {[%clk 0:00:45.2]}
33... Rge5 {[%clk 0:00:12.5]} 34. Rxe5 {[%clk 0:00:44.6]} 34... Rxe5 {[%clk
0:00:11.3]} 35. b3 {[%clk 0:00:44.7]} 35... Bf5 {[%clk 0:00:09.4]} 36. Ne3
{[%clk 0:00:44.7]} 36... Be4 {[%clk 0:00:08.3]} 37. a4 {[%clk 0:00:44.4]} 37...
f5 {[%clk 0:00:05.8]} 38. axb5 {[%clk 0:00:42.4]} 38... axb5 {[%clk 0:00:06.7]}
39. Rb4 {[%clk 0:00:35.9]} 39... f4 {[%clk 0:00:02.3]} 40. Ng4 {[%clk
0:00:34.5]} 1-0

[Event "*** SCC Grand Prix: Titled Tuesday Blitz"]
[Site "Chess.com"]
[Date "2020.07.07"]
[Round "6"]
[White "FearNoEvil12"]
[Black "Chessdude1987"]
[Result "0-1"]
[WhiteElo "2042"]
[BlackElo "2221"]
[TimeControl "180+1"]
[EndTime "11:06:21 PDT"]
[Termination "Chessdude1987 won by checkmate"]

1. e4 {[%clk 0:03:00.9]} 1... e6 {[%clk 0:02:59.2]} 2. d4 {[%clk 0:02:59.6]}
2... d5 {[%clk 0:02:59.1]} 3. Nc3 {[%clk 0:02:59.2]} 3... Nf6 {[%clk 0:02:58.2]}
4. Qd3 {[%clk 0:02:58.7]} 4... c5 {[%clk 0:02:55.2]} 5. exd5 {[%clk 0:02:58.5]}
5... exd5 {[%clk 0:02:54.6]} 6. dxc5 {[%clk 0:02:58.2]} 6... Bxc5 {[%clk
0:02:51.1]} 7. Bg5 {[%clk 0:02:58.6]} 7... O-O {[%clk 0:02:46.1]} 8. O-O-O
{[%clk 0:02:57.5]} 8... Be6 {[%clk 0:02:31.3]} 9. Nf3 {[%clk 0:02:54.7]} 9...
Nbd7 {[%clk 0:02:30.1]} 10. Nd4 {[%clk 0:02:49.7]} 10... Rc8 {[%clk 0:02:15.8]}
11. Kb1 {[%clk 0:02:47.6]} 11... Bb4 {[%clk 0:02:08.6]} 12. Nce2 {[%clk
0:02:39.3]} 12... Qb6 {[%clk 0:02:03.9]} 13. f3 {[%clk 0:02:22.3]} 13... Ne5
{[%clk 0:02:01.4]} 14. Qe3 {[%clk 0:02:16.3]} 14... Nc4 {[%clk 0:01:54.3]} 15.
Qb3 {[%clk 0:02:14.3]} 15... Nd7 {[%clk 0:01:42.7]} 16. c3 {[%clk 0:02:01.2]}
16... Bc5 {[%clk 0:01:26.2]} 17. Qxb6 {[%clk 0:01:59.3]} 17... Bxb6 {[%clk
0:01:22.2]} 18. Nc1 {[%clk 0:01:46.8]} 18... h6 {[%clk 0:01:21.6]} 19. Bxc4
{[%clk 0:01:37.5]} 19... hxg5 {[%clk 0:01:16.3]} 20. Bb5 {[%clk 0:01:36.8]}
20... Nc5 {[%clk 0:01:08.6]} 21. Ncb3 {[%clk 0:01:36]} 21... Nxb3 {[%clk
0:01:05.6]} 22. axb3 {[%clk 0:01:35.2]} 22... a6 {[%clk 0:01:05.3]} 23. Bd3
{[%clk 0:01:34]} 23... Bd7 {[%clk 0:01:03.2]} 24. h4 {[%clk 0:01:32.5]} 24... g4
{[%clk 0:01:02.1]} 25. h5 {[%clk 0:01:32.1]} 25... gxf3 {[%clk 0:00:57.4]} 26.
gxf3 {[%clk 0:01:30.9]} 26... Rfe8 {[%clk 0:00:57.1]} 27. h6 {[%clk 0:01:25.9]}
27... g6 {[%clk 0:00:56.2]} 28. h7+ {[%clk 0:01:25.8]} 28... Kh8 {[%clk
0:00:55.9]} 29. Nc2 {[%clk 0:01:20.3]} 29... Re5 {[%clk 0:00:54.8]} 30. f4
{[%clk 0:01:16.5]} 30... Rh5 {[%clk 0:00:47.3]} 31. Rxh5 {[%clk 0:01:14.3]}
31... gxh5 {[%clk 0:00:46.9]} 32. Nb4 {[%clk 0:01:06.5]} 32... Bg4 {[%clk
0:00:42.9]} 33. Re1 {[%clk 0:01:02.3]} 33... d4 {[%clk 0:00:42]} 34. Nd5 {[%clk
0:00:56.6]} 34... Bc5 {[%clk 0:00:37]} 35. c4 {[%clk 0:00:53.8]} 35... f5 {[%clk
0:00:32]} 36. Re6 {[%clk 0:00:49.5]} 36... Kxh7 {[%clk 0:00:28.8]} 37. Nf6+
{[%clk 0:00:43.8]} 37... Kg7 {[%clk 0:00:28.4]} 38. Nxg4 {[%clk 0:00:43.4]}
38... fxg4 {[%clk 0:00:27.8]} 39. Rg6+ {[%clk 0:00:41.8]} 39... Kf7 {[%clk
0:00:27.1]} 40. Rh6 {[%clk 0:00:39.5]} 40... g3 {[%clk 0:00:24.6]} 41. Rxh5
{[%clk 0:00:36.7]} 41... Rg8 {[%clk 0:00:23.7]} 42. b4 {[%clk 0:00:33.9]} 42...
g2 {[%clk 0:00:22.7]} 43. Rxc5 {[%clk 0:00:25.5]} 43... g1=Q+ {[%clk 0:00:21.5]}
44. Ka2 {[%clk 0:00:26]} 44... Qd1 {[%clk 0:00:20.6]} 45. Be4 {[%clk 0:00:24.7]}
45... Qa4+ {[%clk 0:00:19.6]} 46. Kb1 {[%clk 0:00:23]} 46... Rg1# {[%clk
0:00:19.2]} 0-1

[Event "*** SCC Grand Prix: Titled Tuesday Blitz"]
[Site "Chess.com"]
[Date "2020.07.07"]
[Round "6"]
[White "Konek-Gorbunok"]
[Black "VladaSviridova"]
[Result "1/2-1/2"]
[WhiteElo "2272"]
[BlackElo "2126"]
[TimeControl "180+1"]
[EndTime "11:06:22 PDT"]
[Termination "Game drawn by repetition"]

1. d4 {[%clk 0:03:00.9]} 1... d5 {[%clk 0:03:00]} 2. Nf3 {[%clk 0:03:01.8]} 2...
Nf6 {[%clk 0:02:59.6]} 3. g3 {[%clk 0:03:01.9]} 3... c6 {[%clk 0:02:57.2]} 4.
Bg2 {[%clk 0:03:02.1]} 4... Bf5 {[%clk 0:02:57.2]} 5. O-O {[%clk 0:03:03]} 5...
e6 {[%clk 0:02:57.6]} 6. c4 {[%clk 0:03:03.5]} 6... Nbd7 {[%clk 0:02:57.6]} 7.
Nc3 {[%clk 0:03:04.1]} 7... h6 {[%clk 0:02:57.9]} 8. Nd2 {[%clk 0:03:03.8]} 8...
Be7 {[%clk 0:02:57]} 9. e4 {[%clk 0:03:04.2]} 9... dxe4 {[%clk 0:02:57.4]} 10.
Ndxe4 {[%clk 0:03:05.1]} 10... Nxe4 {[%clk 0:02:57.5]} 11. Nxe4 {[%clk
0:03:05.7]} 11... O-O {[%clk 0:02:57.2]} 12. Be3 {[%clk 0:03:05.8]} 12... Nf6
{[%clk 0:02:56.8]} 13. Nc3 {[%clk 0:03:06.2]} 13... Rc8 {[%clk 0:02:49.6]} 14.
h3 {[%clk 0:03:05.5]} 14... Bh7 {[%clk 0:02:48.5]} 15. Qb3 {[%clk 0:03:04.5]}
15... Qc7 {[%clk 0:02:41.4]} 16. Rfd1 {[%clk 0:03:03.4]} 16... Rfd8 {[%clk
0:02:41.2]} 17. Rac1 {[%clk 0:03:03.2]} 17... b6 {[%clk 0:02:28.4]} 18. d5
{[%clk 0:03:03]} 18... exd5 {[%clk 0:02:24.7]} 19. cxd5 {[%clk 0:03:02.3]} 19...
c5 {[%clk 0:02:20.9]} 20. Nb5 {[%clk 0:02:53.3]} 20... Qd7 {[%clk 0:02:11.8]}
21. d6 {[%clk 0:02:28.3]} 21... Bf8 {[%clk 0:02:11.5]} 22. Qa4 {[%clk
0:02:16.4]} 22... a5 {[%clk 0:02:07.5]} 23. Nc3 {[%clk 0:02:01.7]} 23... Qxa4
{[%clk 0:02:03.1]} 24. Nxa4 {[%clk 0:02:00.6]} 24... Rxd6 {[%clk 0:01:56.8]} 25.
Rxd6 {[%clk 0:01:56.8]} 25... Bxd6 {[%clk 0:01:56.8]} 26. Nxb6 {[%clk
0:01:56.2]} 26... Rb8 {[%clk 0:01:53.6]} 27. Bxc5 {[%clk 0:01:35.2]} 27... Bxc5
{[%clk 0:01:46.9]} 28. Rxc5 {[%clk 0:01:34.2]} 28... Bb1 {[%clk 0:01:46]} 29.
Na4 {[%clk 0:00:31.3]} 29... Bxa2 {[%clk 0:01:42.9]} 30. Rxa5 {[%clk 0:00:30.9]}
30... Bb3 {[%clk 0:01:39.4]} 31. Nc5 {[%clk 0:00:29.7]} 31... Bc4 {[%clk
0:01:35.5]} 32. Ra8 {[%clk 0:00:27.1]} 32... Rxa8 {[%clk 0:01:34.6]} 33. Bxa8
{[%clk 0:00:26.8]} 33... Kf8 {[%clk 0:01:34.6]} 34. Bf3 {[%clk 0:00:21.8]} 34...
Ke7 {[%clk 0:01:33.9]} 35. Ne4 {[%clk 0:00:19]} 35... Nxe4 {[%clk 0:01:19.3]}
36. Bxe4 {[%clk 0:00:18.3]} 36... Kd6 {[%clk 0:01:19.5]} 37. f4 {[%clk
0:00:17.8]} 37... Kc5 {[%clk 0:01:19]} 38. Kf2 {[%clk 0:00:17.4]} 38... Kb4
{[%clk 0:01:19]} 39. Bc2 {[%clk 0:00:17.4]} 39... f6 {[%clk 0:01:09.5]} 40. Ke3
{[%clk 0:00:17.4]} 40... Kc5 {[%clk 0:01:07.9]} 41. Bd3 {[%clk 0:00:15.1]} 41...
Bb3 {[%clk 0:01:06.3]} 42. Kd2 {[%clk 0:00:14.5]} 42... Bd5 {[%clk 0:01:05.7]}
43. Kc3 {[%clk 0:00:13.7]} 43... Bg2 {[%clk 0:01:05.5]} 44. h4 {[%clk
0:00:13.1]} 44... Bd5 {[%clk 0:01:03.5]} 45. b4+ {[%clk 0:00:12.5]} 45... Kb6
{[%clk 0:01:03.2]} 46. Kd4 {[%clk 0:00:12.3]} 46... Bf3 {[%clk 0:01:02.4]} 47.
Be4 {[%clk 0:00:11.4]} 47... Bh5 {[%clk 0:01:00.5]} 48. Bd3 {[%clk 0:00:10.2]}
48... Bf3 {[%clk 0:00:59.9]} 49. Kc4 {[%clk 0:00:09]} 49... Bc6 {[%clk
0:00:58.8]} 50. Kd4 {[%clk 0:00:08.8]} 50... Bf3 {[%clk 0:00:58.8]} 1/2-1/2

[Event "*** SCC Grand Prix: Titled Tuesday Blitz"]
[Site "Chess.com"]
[Date "2020.07.07"]
[Round "6"]
[White "stolencandy13"]
[Black "Natalya_Buksa"]
[Result "0-1"]
[WhiteElo "2371"]
[BlackElo "2560"]
[TimeControl "180+1"]
[EndTime "11:06:26 PDT"]
[Termination "Natalya_Buksa won by resignation"]

1. e4 {[%clk 0:03:00.9]} 1... c5 {[%clk 0:02:59.4]} 2. Nf3 {[%clk 0:02:59.6]}
2... Nc6 {[%clk 0:02:59.8]} 3. d4 {[%clk 0:02:59.9]} 3... cxd4 {[%clk
0:03:00.2]} 4. Nxd4 {[%clk 0:03:00.8]} 4... e5 {[%clk 0:03:00.1]} 5. Nb5 {[%clk
0:03:00.6]} 5... d6 {[%clk 0:03:00.6]} 6. c4 {[%clk 0:03:00.5]} 6... Be7 {[%clk
0:02:57.6]} 7. Be2 {[%clk 0:02:54.3]} 7... Be6 {[%clk 0:02:55.2]} 8. N5c3 {[%clk
0:02:53.4]} 8... f5 {[%clk 0:02:53.7]} 9. exf5 {[%clk 0:02:42]} 9... Bxf5 {[%clk
0:02:54.6]} 10. Be3 {[%clk 0:02:40.6]} 10... Nf6 {[%clk 0:02:54.7]} 11. Nd2
{[%clk 0:02:38.7]} 11... O-O {[%clk 0:02:51.4]} 12. O-O {[%clk 0:02:36.7]} 12...
Qe8 {[%clk 0:02:31.8]} 13. Bf3 {[%clk 0:02:28.1]} 13... Kh8 {[%clk 0:02:23.2]}
14. Rc1 {[%clk 0:02:25.4]} 14... Qg6 {[%clk 0:02:15.2]} 15. Re1 {[%clk
0:02:16.7]} 15... e4 {[%clk 0:02:04.6]} 16. Be2 {[%clk 0:02:02.9]} 16... Ne5
{[%clk 0:02:01.5]} 17. Nf1 {[%clk 0:01:57.8]} 17... Bg4 {[%clk 0:01:34.2]} 18.
Nd5 {[%clk 0:01:42.9]} 18... Nxd5 {[%clk 0:00:58.9]} 19. Bxg4 {[%clk 0:01:29.7]}
19... Nxg4 {[%clk 0:00:47.1]} 20. Qxd5 {[%clk 0:01:22.1]} 20... Bh4 {[%clk
0:00:40.2]} 21. Ng3 {[%clk 0:01:12.5]} 21... Nxe3 {[%clk 0:00:39]} 22. Rxe3
{[%clk 0:01:11]} 22... Bg5 {[%clk 0:00:39.1]} 23. Qxe4 {[%clk 0:00:54.8]} 23...
Bxe3 {[%clk 0:00:38.2]} 24. Qxe3 {[%clk 0:00:51.5]} 24... b6 {[%clk 0:00:28.9]}
25. Qd4 {[%clk 0:00:47.9]} 25... Rae8 {[%clk 0:00:27]} 26. h3 {[%clk 0:00:44.5]}
26... Qf6 {[%clk 0:00:25.8]} 27. Qd2 {[%clk 0:00:38.6]} 27... h6 {[%clk
0:00:23.9]} 28. Rd1 {[%clk 0:00:37.8]} 28... Re6 {[%clk 0:00:22.8]} 29. b3
{[%clk 0:00:35.7]} 29... Rfe8 {[%clk 0:00:22.2]} 30. Nh5 {[%clk 0:00:29.4]}
30... Qe5 {[%clk 0:00:21.6]} 31. Ng3 {[%clk 0:00:28.7]} 31... Rf6 {[%clk
0:00:17.1]} 32. Nf1 {[%clk 0:00:27.8]} 32... Qf4 {[%clk 0:00:16.2]} 33. Ne3
{[%clk 0:00:26.2]} 33... Kh7 {[%clk 0:00:13.6]} 34. Rf1 {[%clk 0:00:26.1]} 34...
Rfe6 {[%clk 0:00:10.5]} 35. Qd3+ {[%clk 0:00:25.6]} 35... Qe4 {[%clk 0:00:10.1]}
36. Qd2 {[%clk 0:00:23.8]} 36... Kh8 {[%clk 0:00:10.6]} 37. Nd5 {[%clk
0:00:20.5]} 37... Qe2 {[%clk 0:00:10.2]} 38. Qf4 {[%clk 0:00:17.2]} 38... Qxf1+
{[%clk 0:00:06.5]} 0-1

[Event "*** SCC Grand Prix: Titled Tuesday Blitz"]
[Site "Chess.com"]
[Date "2020.07.07"]
[Round "6"]
[White "tlomigtlis"]
[Black "LaPorfia"]
[Result "1-0"]
[WhiteElo "2366"]
[BlackElo "2217"]
[TimeControl "180+1"]
[EndTime "11:06:26 PDT"]
[Termination "tlomigtlis won by resignation"]

1. d4 {[%clk 0:03:00.9]} 1... Nf6 {[%clk 0:02:59.1]} 2. c4 {[%clk 0:03:01.1]}
2... e6 {[%clk 0:02:59]} 3. Nc3 {[%clk 0:03:01.3]} 3... d5 {[%clk 0:02:58.8]} 4.
cxd5 {[%clk 0:03:01]} 4... exd5 {[%clk 0:02:58.3]} 5. Bg5 {[%clk 0:03:01.1]}
5... Nbd7 {[%clk 0:02:56.3]} 6. e3 {[%clk 0:03:00.4]} 6... Bb4 {[%clk
0:02:55.5]} 7. Bd3 {[%clk 0:02:59.1]} 7... c5 {[%clk 0:02:53.9]} 8. Ne2 {[%clk
0:02:54.1]} 8... c4 {[%clk 0:02:51.1]} 9. Bf5 {[%clk 0:02:51.3]} 9... g6 {[%clk
0:02:50.4]} 10. Bxd7+ {[%clk 0:02:35.3]} 10... Bxd7 {[%clk 0:02:47.8]} 11. O-O
{[%clk 0:02:35.7]} 11... Bc6 {[%clk 0:02:38.2]} 12. Nf4 {[%clk 0:01:57.1]} 12...
Be7 {[%clk 0:02:30.8]} 13. b3 {[%clk 0:01:25.7]} 13... O-O {[%clk 0:01:56.8]}
14. bxc4 {[%clk 0:01:00]} 14... dxc4 {[%clk 0:01:56.2]} 15. Bh6 {[%clk
0:01:00.5]} 15... Re8 {[%clk 0:01:56]} 16. d5 {[%clk 0:01:00.4]} 16... Bd7
{[%clk 0:01:47.9]} 17. Qd4 {[%clk 0:00:53.4]} 17... Bf8 {[%clk 0:01:42.8]} 18.
Bxf8 {[%clk 0:00:51.6]} 18... Rxf8 {[%clk 0:01:40.4]} 19. Qxc4 {[%clk
0:00:48.8]} 19... Rc8 {[%clk 0:01:38.3]} 20. Qd4 {[%clk 0:00:48.9]} 20... Ng4
{[%clk 0:01:05.6]} 21. h3 {[%clk 0:00:43.2]} 21... Nh6 {[%clk 0:01:05.5]} 22. d6
{[%clk 0:00:42.4]} 22... Nf5 {[%clk 0:01:04.8]} 23. Qe5 {[%clk 0:00:38.4]} 23...
Re8 {[%clk 0:01:02.5]} 24. Qd5 {[%clk 0:00:34]} 24... Rxc3 {[%clk 0:01:00.4]}
25. Qxb7 {[%clk 0:00:34.2]} 25... Bc6 {[%clk 0:00:59]} 26. Qxa7 {[%clk
0:00:31.9]} 26... Qxd6 {[%clk 0:00:58]} 27. Rad1 {[%clk 0:00:30.6]} 27... Qe5
{[%clk 0:00:56.2]} 28. Qb6 {[%clk 0:00:28.1]} 28... Qe4 {[%clk 0:00:52.3]} 29.
Rfe1 {[%clk 0:00:11.2]} 29... Nh4 {[%clk 0:00:50.4]} 30. f3 {[%clk 0:00:09.6]}
30... Nxf3+ {[%clk 0:00:50.2]} 31. gxf3 {[%clk 0:00:10.5]} 31... Qxf3 {[%clk
0:00:49.2]} 32. Rd2 {[%clk 0:00:10.7]} 32... Rcxe3 {[%clk 0:00:45.9]} 33. Rxe3
{[%clk 0:00:06.8]} 33... Rxe3 {[%clk 0:00:45.2]} 34. Qd8+ {[%clk 0:00:06.8]}
34... Kg7 {[%clk 0:00:45.2]} 35. Qd4+ {[%clk 0:00:07.3]} 35... Kh6 {[%clk
0:00:44.4]} 36. Ng2 {[%clk 0:00:07.7]} 36... Re4 {[%clk 0:00:37.2]} 37. Qd8
{[%clk 0:00:06.3]} 37... Re2 {[%clk 0:00:25.4]} 38. Qf8+ {[%clk 0:00:05.7]}
38... Kh5 {[%clk 0:00:24.4]} 39. Qc5+ {[%clk 0:00:06.3]} 39... f5 {[%clk
0:00:22.8]} 40. Rxe2 {[%clk 0:00:06]} 40... Qxe2 {[%clk 0:00:22.4]} 41. Nf4+
{[%clk 0:00:06.3]} 41... Kh6 {[%clk 0:00:21.9]} 42. Nxe2 {[%clk 0:00:07.2]} 1-0

[Event "*** SCC Grand Prix: Titled Tuesday Blitz"]
[Site "Chess.com"]
[Date "2020.07.07"]
[Round "6"]
[White "diablanni"]
[Black "dennisodessa"]
[Result "0-1"]
[WhiteElo "2301"]
[BlackElo "2442"]
[TimeControl "180+1"]
[EndTime "11:06:27 PDT"]
[Termination "dennisodessa won on time"]

1. e4 {[%clk 0:03:00.2]} 1... e6 {[%clk 0:03:00.9]} 2. d4 {[%clk 0:02:59.2]}
2... d5 {[%clk 0:03:01.3]} 3. Nc3 {[%clk 0:02:59]} 3... Nc6 {[%clk 0:03:01.2]}
4. Nf3 {[%clk 0:02:31.8]} 4... Nf6 {[%clk 0:03:00.2]} 5. Bd3 {[%clk 0:02:16.6]}
5... Bb4 {[%clk 0:02:59.8]} 6. O-O {[%clk 0:01:32.3]} 6... Bxc3 {[%clk
0:02:59.1]} 7. exd5 {[%clk 0:01:29.5]} 7... Nxd4 {[%clk 0:02:59.4]} 8. bxc3
{[%clk 0:01:21.2]} 8... Nxf3+ {[%clk 0:02:59.5]} 9. Qxf3 {[%clk 0:01:20.8]} 9...
Nxd5 {[%clk 0:03:00.4]} 10. Re1 {[%clk 0:01:17.6]} 10... O-O {[%clk 0:02:58.3]}
11. Ba3 {[%clk 0:01:15.5]} 11... Re8 {[%clk 0:02:57.2]} 12. Rad1 {[%clk
0:01:11.3]} 12... Qf6 {[%clk 0:02:33.6]} 13. Qxd5 {[%clk 0:00:55.2]} 13... Qxc3
{[%clk 0:02:30.9]} 14. Qb3 {[%clk 0:00:53.1]} 14... Qxb3 {[%clk 0:02:26.5]} 15.
cxb3 {[%clk 0:00:49.2]} 15... a5 {[%clk 0:02:13.3]} 16. Be4 {[%clk 0:00:42.7]}
16... a4 {[%clk 0:02:09.9]} 17. Bb4 {[%clk 0:00:37.6]} 17... c6 {[%clk
0:01:47.1]} 18. Bc5 {[%clk 0:00:29.7]} 18... e5 {[%clk 0:01:42.8]} 19. b4 {[%clk
0:00:27.2]} 19... a3 {[%clk 0:01:43.1]} 20. Re2 {[%clk 0:00:13.2]} 20... Be6
{[%clk 0:01:40.9]} 21. Red2 {[%clk 0:00:11.2]} 21... f5 {[%clk 0:01:27.6]} 22.
Bf3 {[%clk 0:00:09]} 22... Kf7 {[%clk 0:01:26.3]} 23. Bh5+ {[%clk 0:00:06.9]}
23... g6 {[%clk 0:01:26.1]} 24. Be2 {[%clk 0:00:07.3]} 24... e4 {[%clk
0:01:10.1]} 25. f3 {[%clk 0:00:06.6]} 25... Bd5 {[%clk 0:01:09.4]} 26. fxe4
{[%clk 0:00:06.2]} 26... fxe4 {[%clk 0:01:09.6]} 27. b5 {[%clk 0:00:05.6]} 27...
Ra5 {[%clk 0:00:45.5]} 28. Bb4 {[%clk 0:00:04.5]} 28... Ra4 {[%clk 0:00:45.5]}
29. Rf1+ {[%clk 0:00:04]} 29... Kg8 {[%clk 0:00:44.5]} 30. Bc3 {[%clk
0:00:03.3]} 30... e3 {[%clk 0:00:25]} 31. Rc2 {[%clk 0:00:03.1]} 31... Be4
{[%clk 0:00:13]} 32. Rcc1 {[%clk 0:00:01.8]} 32... Bd5 {[%clk 0:00:13.9]} 33.
bxc6 {[%clk 0:00:01.5]} 33... bxc6 {[%clk 0:00:14.8]} 0-1